[Event "Late-Titled-Tuesday-Blitz-March-19-2024"]
[Site "Chess.com"]
[Date "2024.03.19"]
[Round "6"]
[White "sergiochess83"]
[Black "krzyzan94"]
[Result "1-0"]
[WhiteElo "2967"]
[BlackElo "2789"]
[TimeControl "180+1"]
[EndTime "15:04:59 PDT"]
[Termination "sergiochess83 won on time"]

1. d4 {[%clk 0:02:55]} 1... Nf6 {[%clk 0:02:58.9]} 2. c4 {[%clk 0:02:55.2]} 2...
c5 {[%clk 0:02:55.9]} 3. d5 {[%clk 0:02:55]} 3... e6 {[%clk 0:02:56.4]} 4. Nc3
{[%clk 0:02:54.5]} 4... exd5 {[%clk 0:02:56.2]} 5. cxd5 {[%clk 0:02:55.4]} 5...
d6 {[%clk 0:02:55.8]} 6. Nf3 {[%clk 0:02:56]} 6... g6 {[%clk 0:02:55.5]} 7. h3
{[%clk 0:02:56.7]} 7... Bg7 {[%clk 0:02:53.4]} 8. Bf4 {[%clk 0:02:57.3]} 8... a6
{[%clk 0:02:52.5]} 9. a4 {[%clk 0:02:56.6]} 9... O-O {[%clk 0:02:52.2]} 10. e3
{[%clk 0:02:57]} 10... Nh5 {[%clk 0:02:49.9]} 11. Bh2 {[%clk 0:02:56.7]} 11...
f5 {[%clk 0:02:49.1]} 12. Be2 {[%clk 0:02:52.9]} 12... Qe7 {[%clk 0:02:45.2]}
13. O-O {[%clk 0:02:50.4]} 13... Nd7 {[%clk 0:02:44.4]} 14. Nd2 {[%clk
0:02:48.1]} 14... Nhf6 {[%clk 0:02:45]} 15. Nc4 {[%clk 0:02:48.2]} 15... Ne8
{[%clk 0:02:45.1]} 16. Rb1 {[%clk 0:02:45.8]} 16... Ne5 {[%clk 0:02:41.7]} 17.
Nb6 {[%clk 0:02:39]} 17... Rb8 {[%clk 0:02:34.9]} 18. Qd2 {[%clk 0:02:38.9]}
18... Nf6 {[%clk 0:02:24.3]} 19. b4 {[%clk 0:02:32.3]} 19... cxb4 {[%clk
0:02:22.9]} 20. Rxb4 {[%clk 0:02:32.2]} 20... Bd7 {[%clk 0:02:22.5]} 21. Rfb1
{[%clk 0:02:29.4]} 21... Rbd8 {[%clk 0:02:10.3]} 22. a5 {[%clk 0:02:25.6]} 22...
g5 {[%clk 0:02:05.4]} 23. Bxe5 {[%clk 0:02:13]} 23... Qxe5 {[%clk 0:02:02.8]}
24. Nc4 {[%clk 0:02:12.5]} 24... Qe7 {[%clk 0:01:52.9]} 25. Rxb7 {[%clk
0:02:12.5]} 25... Rc8 {[%clk 0:01:48.7]} 26. Nb6 {[%clk 0:02:07.5]} 26... Rc5
{[%clk 0:01:46.4]} 27. Bxa6 {[%clk 0:01:54.8]} 27... f4 {[%clk 0:01:37.3]} 28.
exf4 {[%clk 0:01:46.4]} 28... gxf4 {[%clk 0:01:30.1]} 29. Bb5 {[%clk 0:01:45.4]}
29... Ne4 {[%clk 0:01:21.6]} 30. Nxe4 {[%clk 0:01:32]} 30... Qxe4 {[%clk
0:01:22.5]} 31. Re1 {[%clk 0:01:31.3]} 31... Qg6 {[%clk 0:00:28.2]} 32. Nxd7
{[%clk 0:00:51.5]} 32... f3 {[%clk 0:00:23.2]} 33. g3 {[%clk 0:00:50.8]} 33...
Rc2 {[%clk 0:00:10.5]} 34. Nxf8 {[%clk 0:00:47.8]} 34... Qf5 {[%clk 0:00:02.5]}
35. Rxg7+ {[%clk 0:00:46.3]} 35... Kxg7 {[%clk 0:00:01.6]} 36. Ne6+ {[%clk
0:00:44.9]} 36... Kf7 {[%clk 0:00:01.4]} 37. Qf4 {[%clk 0:00:42.3]} 1-0

[Event "Late-Titled-Tuesday-Blitz-March-19-2024"]
[Site "Chess.com"]
[Date "2024.03.19"]
[Round "6"]
[White "Stanbad1"]
[Black "Romkachess"]
[Result "1-0"]
[WhiteElo "2593"]
[BlackElo "2697"]
[TimeControl "180+1"]
[EndTime "15:05:00 PDT"]
[Termination "Stanbad1 won by resignation"]

1. d4 {[%clk 0:03:00.9]} 1... Nf6 {[%clk 0:02:59.4]} 2. Nc3 {[%clk 0:03:00.8]}
2... d5 {[%clk 0:02:50.3]} 3. Bf4 {[%clk 0:03:00]} 3... a6 {[%clk 0:02:49.4]} 4.
e3 {[%clk 0:02:59.1]} 4... e6 {[%clk 0:02:48.2]} 5. Bd3 {[%clk 0:02:58.2]} 5...
c5 {[%clk 0:02:45.7]} 6. dxc5 {[%clk 0:02:57.8]} 6... Bxc5 {[%clk 0:02:44.1]} 7.
Nf3 {[%clk 0:02:57.1]} 7... Nc6 {[%clk 0:02:44.4]} 8. O-O {[%clk 0:02:56.4]}
8... O-O {[%clk 0:02:44.7]} 9. e4 {[%clk 0:02:56.2]} 9... Be7 {[%clk 0:02:36.3]}
10. exd5 {[%clk 0:02:53.3]} 10... exd5 {[%clk 0:02:35.8]} 11. Ne5 {[%clk
0:02:53]} 11... Be6 {[%clk 0:02:30.3]} 12. Qf3 {[%clk 0:02:51.4]} 12... Rc8
{[%clk 0:02:26.9]} 13. Rad1 {[%clk 0:02:49.5]} 13... Nb4 {[%clk 0:02:26.7]} 14.
Rfe1 {[%clk 0:02:45.4]} 14... Nxd3 {[%clk 0:02:26.4]} 15. Qxd3 {[%clk
0:02:43.3]} 15... Qb6 {[%clk 0:02:18.7]} 16. Be3 {[%clk 0:02:36.2]} 16... Qxb2
{[%clk 0:02:07.2]} 17. Bd4 {[%clk 0:02:30.4]} 17... Qa3 {[%clk 0:02:01.9]} 18.
Rb1 {[%clk 0:02:22.9]} 18... b5 {[%clk 0:01:50.4]} 19. f3 {[%clk 0:02:13.7]}
19... Bc5 {[%clk 0:01:35.9]} 20. Ne2 {[%clk 0:02:06]} 20... Qxd3 {[%clk
0:01:24.2]} 21. cxd3 {[%clk 0:02:01.4]} 21... Bf5 {[%clk 0:01:00.7]} 22. Bxc5
{[%clk 0:01:59.4]} 22... Rxc5 {[%clk 0:01:00]} 23. Nd4 {[%clk 0:02:00]} 23...
Be6 {[%clk 0:00:47.5]} 24. Rec1 {[%clk 0:01:57.4]} 24... Rfc8 {[%clk 0:00:47.2]}
25. Rxc5 {[%clk 0:01:57.3]} 25... Rxc5 {[%clk 0:00:46.9]} 26. a4 {[%clk
0:01:58.2]} 26... Bd7 {[%clk 0:00:20.4]} 27. axb5 {[%clk 0:01:55.7]} 27... axb5
{[%clk 0:00:20.6]} 28. Nxd7 {[%clk 0:01:54.3]} 28... Nxd7 {[%clk 0:00:20.8]} 29.
Nxb5 {[%clk 0:01:54.5]} 29... g6 {[%clk 0:00:09.8]} 30. Nd4 {[%clk 0:01:53.7]}
30... Ne5 {[%clk 0:00:08.7]} 31. Rb3 {[%clk 0:01:46.1]} 31... Rc1+ {[%clk
0:00:07.3]} 32. Kf2 {[%clk 0:01:46.3]} 32... Rd1 {[%clk 0:00:08.2]} 33. Ke2
{[%clk 0:01:42.4]} 33... Rg1 {[%clk 0:00:08]} 34. Kf2 {[%clk 0:01:42.1]} 34...
Ra1 {[%clk 0:00:08.3]} 35. f4 {[%clk 0:01:41]} 35... Ra2+ {[%clk 0:00:08.4]} 36.
Kg3 {[%clk 0:01:40.6]} 36... Nd7 {[%clk 0:00:07.7]} 37. Rb5 {[%clk 0:01:37.8]}
37... Nf6 {[%clk 0:00:07.8]} 38. Rb8+ {[%clk 0:01:30.8]} 38... Kg7 {[%clk
0:00:07.8]} 39. Rb7 {[%clk 0:01:31.7]} 39... Nh5+ {[%clk 0:00:07.8]} 40. Kf3
{[%clk 0:01:31.5]} 40... Rd2 {[%clk 0:00:07.2]} 41. Ne6+ {[%clk 0:01:30.3]}
41... Kf6 {[%clk 0:00:07.5]} 42. Nc5 {[%clk 0:01:29]} 42... Rd1 {[%clk
0:00:07.6]} 43. g3 {[%clk 0:01:27.8]} 43... Rf1+ {[%clk 0:00:07.1]} 44. Kg2
{[%clk 0:01:28.1]} 44... Ra1 {[%clk 0:00:08]} 45. Nd7+ {[%clk 0:01:26.4]} 45...
Ke6 {[%clk 0:00:07.6]} 46. Nf8+ {[%clk 0:01:26.4]} 46... Kf6 {[%clk 0:00:06.7]}
47. Nxh7+ {[%clk 0:01:26.6]} 47... Kg7 {[%clk 0:00:04.5]} 48. Ng5 {[%clk
0:01:26.8]} 48... Ra2+ {[%clk 0:00:04.8]} 49. Kh3 {[%clk 0:01:26.8]} 49... Kh6
{[%clk 0:00:02.9]} 50. Rxf7 {[%clk 0:01:25.3]} 50... Ng7 {[%clk 0:00:03.8]} 51.
Rd7 {[%clk 0:01:23.5]} 51... Ra5 {[%clk 0:00:03]} 52. Nf7+ {[%clk 0:01:22.6]}
52... Kh7 {[%clk 0:00:03]} 53. Nd8 {[%clk 0:01:22.6]} 53... Kh6 {[%clk 0:00:03]}
54. Nc6 {[%clk 0:01:22.5]} 54... Nf5 {[%clk 0:00:03.1]} 55. Nxa5 {[%clk
0:01:21.9]} 1-0

[Event "Late-Titled-Tuesday-Blitz-March-19-2024"]
[Site "Chess.com"]
[Date "2024.03.19"]
[Round "6"]
[White "Der_Balak_3Halak"]
[Black "ozates"]
[Result "0-1"]
[WhiteElo "2411"]
[BlackElo "2562"]
[TimeControl "180+1"]
[EndTime "15:05:01 PDT"]
[Termination "ozates won by resignation"]

1. e4 {[%clk 0:02:59.2]} 1... e5 {[%clk 0:02:59.7]} 2. Nf3 {[%clk 0:02:59.2]}
2... Nc6 {[%clk 0:02:59.8]} 3. Bc4 {[%clk 0:02:58.6]} 3... Nf6 {[%clk
0:02:59.2]} 4. O-O {[%clk 0:02:56.7]} 4... Be7 {[%clk 0:02:56.8]} 5. Re1 {[%clk
0:02:53.5]} 5... h6 {[%clk 0:02:53.9]} 6. c3 {[%clk 0:02:53]} 6... d6 {[%clk
0:02:54.2]} 7. d4 {[%clk 0:02:52.9]} 7... Bg4 {[%clk 0:02:53.3]} 8. d5 {[%clk
0:02:30.5]} 8... Nb8 {[%clk 0:02:51.8]} 9. h3 {[%clk 0:02:25.6]} 9... Bh5 {[%clk
0:02:51]} 10. Be2 {[%clk 0:02:16.1]} 10... O-O {[%clk 0:02:48.6]} 11. Nh4 {[%clk
0:01:53.1]} 11... Bxe2 {[%clk 0:02:44.3]} 12. Qxe2 {[%clk 0:01:54]} 12... Nxd5
{[%clk 0:02:42.5]} 13. Nf5 {[%clk 0:01:41.9]} 13... Nf4 {[%clk 0:02:42.6]} 14.
Bxf4 {[%clk 0:01:38]} 14... exf4 {[%clk 0:02:43.5]} 15. Qg4 {[%clk 0:01:35.8]}
15... Bg5 {[%clk 0:02:30.9]} 16. h4 {[%clk 0:01:32.2]} 16... g6 {[%clk
0:02:31.2]} 17. Nxd6 {[%clk 0:01:05]} 17... Qxd6 {[%clk 0:02:23.9]} 18. hxg5
{[%clk 0:01:04.7]} 18... h5 {[%clk 0:02:24.5]} 19. Qf3 {[%clk 0:00:55.7]} 19...
Nc6 {[%clk 0:02:25.4]} 20. Na3 {[%clk 0:00:53.2]} 20... Rfe8 {[%clk 0:02:16.2]}
21. Rad1 {[%clk 0:00:50.9]} 21... Qe5 {[%clk 0:02:09.2]} 22. Rd5 {[%clk
0:00:47.9]} 22... Qxd5 {[%clk 0:02:05.2]} 23. exd5 {[%clk 0:00:48.8]} 23...
Rxe1+ {[%clk 0:02:06]} 24. Kh2 {[%clk 0:00:49.2]} 24... Ne5 {[%clk 0:02:06.6]}
25. Qxf4 {[%clk 0:00:45.3]} 25... Re8 {[%clk 0:02:05.1]} 26. Nc4 {[%clk
0:00:33.7]} 26... Ng4+ {[%clk 0:02:02.7]} 27. Kg3 {[%clk 0:00:33.5]} 27... R1e4
{[%clk 0:01:54.9]} 28. Qxc7 {[%clk 0:00:28.8]} 28... h4+ {[%clk 0:01:55.2]} 29.
Kh3 {[%clk 0:00:18.5]} 29... Nxf2+ {[%clk 0:01:55.6]} 30. Kh2 {[%clk 0:00:17.8]}
30... Re1 {[%clk 0:01:35.8]} 31. g4 {[%clk 0:00:17.3]} 31... R8e2 {[%clk
0:01:16.4]} 32. Ne3 {[%clk 0:00:13.3]} 32... Nxg4+ {[%clk 0:01:09.1]} 33. Kh3
{[%clk 0:00:13.1]} 33... Nxe3 {[%clk 0:01:07.5]} 34. Kxh4 {[%clk 0:00:09.1]}
34... Rg2 {[%clk 0:01:04.6]} 35. Qc8+ {[%clk 0:00:03.3]} 35... Kh7 {[%clk
0:01:02.4]} 36. Qh3 {[%clk 0:00:04.2]} 36... Nf5+ {[%clk 0:00:55.9]} 37. Qxf5
{[%clk 0:00:03.4]} 37... gxf5 {[%clk 0:00:56.8]} 38. g6+ {[%clk 0:00:03.2]}
38... Rxg6 {[%clk 0:00:56.6]} 0-1

[Event "Late-Titled-Tuesday-Blitz-March-19-2024"]
[Site "Chess.com"]
[Date "2024.03.19"]
[Round "6"]
[White "Szachulec75"]
[Black "ploxoi"]
[Result "0-1"]
[WhiteElo "2180"]
[BlackElo "2412"]
[TimeControl "180+1"]
[EndTime "15:05:01 PDT"]
[Termination "ploxoi won on time"]

1. Nf3 {[%clk 0:03:00.4]} 1... d5 {[%clk 0:02:57.6]} 2. g3 {[%clk 0:02:59.7]}
2... Nf6 {[%clk 0:02:57.5]} 3. Bg2 {[%clk 0:03:00.1]} 3... e6 {[%clk 0:02:56.3]}
4. d3 {[%clk 0:03:01]} 4... Be7 {[%clk 0:02:56.9]} 5. O-O {[%clk 0:03:01.2]}
5... O-O {[%clk 0:02:57.1]} 6. Nbd2 {[%clk 0:03:01.8]} 6... Nbd7 {[%clk
0:02:55.6]} 7. e4 {[%clk 0:03:02]} 7... c5 {[%clk 0:02:45.9]} 8. e5 {[%clk
0:03:01.3]} 8... Ne8 {[%clk 0:02:45.8]} 9. Re1 {[%clk 0:03:01]} 9... b6 {[%clk
0:02:45.9]} 10. Nf1 {[%clk 0:02:58.3]} 10... Bb7 {[%clk 0:02:46.1]} 11. c3
{[%clk 0:02:57.6]} 11... Nc7 {[%clk 0:02:26.9]} 12. h4 {[%clk 0:02:48.2]} 12...
f6 {[%clk 0:02:26.6]} 13. exf6 {[%clk 0:02:46.9]} 13... Nxf6 {[%clk 0:02:26.2]}
14. Ng5 {[%clk 0:02:43]} 14... Qd7 {[%clk 0:02:23.9]} 15. Bh3 {[%clk 0:02:42.2]}
15... Kh8 {[%clk 0:02:17.3]} 16. Nxe6 {[%clk 0:02:38.5]} 16... Nxe6 {[%clk
0:02:17.4]} 17. Bxe6 {[%clk 0:02:32.5]} 17... Qd6 {[%clk 0:02:16.8]} 18. Bf4
{[%clk 0:02:30]} 18... Qd8 {[%clk 0:02:16.9]} 19. d4 {[%clk 0:02:16.6]} 19...
cxd4 {[%clk 0:02:12.3]} 20. cxd4 {[%clk 0:02:14.3]} 20... Ne4 {[%clk 0:02:08.6]}
21. Be3 {[%clk 0:02:05.4]} 21... Bd6 {[%clk 0:01:47]} 22. Rc1 {[%clk 0:01:56.6]}
22... Qf6 {[%clk 0:01:46.3]} 23. Bg4 {[%clk 0:01:12.6]} 23... Nxf2 {[%clk
0:01:43.1]} 24. Qe2 {[%clk 0:01:12.3]} 24... Nxg4 {[%clk 0:01:42]} 25. Qxg4
{[%clk 0:01:12.3]} 25... Ba6 {[%clk 0:01:34.1]} 26. Nd2 {[%clk 0:01:01.2]} 26...
Rae8 {[%clk 0:01:26.5]} 27. Qg5 {[%clk 0:00:35.1]} 27... Qxg5 {[%clk 0:01:23.2]}
28. Bxg5 {[%clk 0:00:33.2]} 28... Bxg3 {[%clk 0:01:23.2]} 29. Rxe8 {[%clk
0:00:26.5]} 29... Rxe8 {[%clk 0:01:24.1]} 30. Nf3 {[%clk 0:00:20.9]} 30... h6
{[%clk 0:01:15.7]} 31. Kg2 {[%clk 0:00:15.3]} 31... Bd6 {[%clk 0:01:04.1]} 32.
Bd2 {[%clk 0:00:13.9]} 32... Re2+ {[%clk 0:01:02]} 33. Kg1 {[%clk 0:00:12.3]}
33... Kh7 {[%clk 0:00:54.5]} 34. Bc3 {[%clk 0:00:12.1]} 34... Re3 {[%clk
0:00:53]} 35. Kg2 {[%clk 0:00:09.6]} 35... Bf4 {[%clk 0:00:50.1]} 36. Rd1 {[%clk
0:00:07.3]} 36... Be2 {[%clk 0:00:48.6]} 37. Rd2 {[%clk 0:00:06.8]} 37... Bxf3+
{[%clk 0:00:47.2]} 0-1

[Event "Late-Titled-Tuesday-Blitz-March-19-2024"]
[Site "Chess.com"]
[Date "2024.03.19"]
[Round "6"]
[White "alexrustemov"]
[Black "Malev212"]
[Result "1-0"]
[WhiteElo "2864"]
[BlackElo "2634"]
[TimeControl "180+1"]
[EndTime "15:05:05 PDT"]
[Termination "alexrustemov won by resignation"]

1. d4 {[%clk 0:03:00.9]} 1... g6 {[%clk 0:02:58.9]} 2. c4 {[%clk 0:03:00.5]}
2... Bg7 {[%clk 0:02:58.7]} 3. Nf3 {[%clk 0:03:01]} 3... d6 {[%clk 0:02:58.4]}
4. g3 {[%clk 0:03:01]} 4... c5 {[%clk 0:02:55.5]} 5. Bg2 {[%clk 0:02:57.1]} 5...
Nc6 {[%clk 0:02:55.2]} 6. dxc5 {[%clk 0:02:51.3]} 6... Qa5+ {[%clk 0:02:52.3]}
7. Nbd2 {[%clk 0:02:38.3]} 7... Qxc5 {[%clk 0:02:46]} 8. O-O {[%clk 0:02:38.3]}
8... Be6 {[%clk 0:02:26.1]} 9. Qa4 {[%clk 0:02:29.8]} 9... Nf6 {[%clk
0:02:15.2]} 10. a3 {[%clk 0:02:29]} 10... O-O {[%clk 0:02:10.2]} 11. b4 {[%clk
0:02:27.6]} 11... Qh5 {[%clk 0:02:08.8]} 12. Bb2 {[%clk 0:02:26.6]} 12... a6
{[%clk 0:02:02.7]} 13. Rac1 {[%clk 0:02:21.3]} 13... Rfc8 {[%clk 0:01:47.9]} 14.
Qb3 {[%clk 0:02:20.1]} 14... b5 {[%clk 0:01:44.9]} 15. Qd3 {[%clk 0:02:18.4]}
15... Bf5 {[%clk 0:01:33.4]} 16. e4 {[%clk 0:02:04.5]} 16... Bg4 {[%clk
0:01:30.7]} 17. cxb5 {[%clk 0:02:01.4]} 17... axb5 {[%clk 0:01:25.7]} 18. Rfe1
{[%clk 0:01:44.9]} 18... Nd7 {[%clk 0:01:11.9]} 19. Bxg7 {[%clk 0:01:41.1]}
19... Kxg7 {[%clk 0:01:11.8]} 20. Qc3+ {[%clk 0:01:15.4]} 20... Kg8 {[%clk
0:01:08.1]} 21. Qb2 {[%clk 0:01:14.5]} 21... Nde5 {[%clk 0:01:03.9]} 22. Nxe5
{[%clk 0:01:14]} 22... Nxe5 {[%clk 0:01:03.6]} 23. Rxc8+ {[%clk 0:01:11.2]}
23... Rxc8 {[%clk 0:01:03.1]} 24. Rc1 {[%clk 0:01:08.2]} 24... Rd8 {[%clk
0:00:33.5]} 25. Qc3 {[%clk 0:01:00.1]} 25... Be2 {[%clk 0:00:30.8]} 26. h3
{[%clk 0:00:54.6]} 26... Nd3 {[%clk 0:00:25.3]} 27. Ra1 {[%clk 0:00:51.1]} 27...
Qe5 {[%clk 0:00:23.9]} 28. Qxe5 {[%clk 0:00:50.5]} 28... dxe5 {[%clk 0:00:21.7]}
29. Nb3 {[%clk 0:00:48.8]} 29... Nb2 {[%clk 0:00:19.1]} 30. Ra2 {[%clk
0:00:44.6]} 30... Rd1+ {[%clk 0:00:14.8]} 31. Kh2 {[%clk 0:00:44.5]} 31... Rb1
{[%clk 0:00:09.8]} 32. Nd2 {[%clk 0:00:43.8]} 32... Bc4 {[%clk 0:00:09.7]} 33.
Nxb1 {[%clk 0:00:42.6]} 33... Bxa2 {[%clk 0:00:09.4]} 34. Nc3 {[%clk 0:00:42.5]}
34... Bc4 {[%clk 0:00:09.4]} 35. Kg1 {[%clk 0:00:35.6]} 35... e6 {[%clk
0:00:08.1]} 36. Bf1 {[%clk 0:00:35.9]} 1-0

[Event "Late-Titled-Tuesday-Blitz-March-19-2024"]
[Site "Chess.com"]
[Date "2024.03.19"]
[Round "6"]
[White "kikoveiga"]
[Black "Viktor_Poddubnyi"]
[Result "0-1"]
[WhiteElo "2499"]
[BlackElo "2295"]
[TimeControl "180+1"]
[EndTime "15:05:05 PDT"]
[Termination "Viktor_Poddubnyi won by resignation"]

1. e4 {[%clk 0:03:00.9]} 1... g6 {[%clk 0:03:00]} 2. d4 {[%clk 0:03:01]} 2...
Bg7 {[%clk 0:03:00.4]} 3. Nc3 {[%clk 0:03:01.3]} 3... d6 {[%clk 0:03:00.8]} 4.
Be3 {[%clk 0:03:01]} 4... a6 {[%clk 0:03:01.2]} 5. Qd2 {[%clk 0:02:59.6]} 5...
b5 {[%clk 0:03:01.4]} 6. Bd3 {[%clk 0:02:59.4]} 6... Bb7 {[%clk 0:03:01.4]} 7.
f3 {[%clk 0:02:58.9]} 7... Nd7 {[%clk 0:03:01.5]} 8. O-O-O {[%clk 0:02:58.3]}
8... c5 {[%clk 0:02:52.2]} 9. h4 {[%clk 0:02:54]} 9... cxd4 {[%clk 0:02:46.5]}
10. Bf2 {[%clk 0:02:11.8]} 10... dxc3 {[%clk 0:02:45.3]} 11. bxc3 {[%clk
0:02:11.8]} 11... Rc8 {[%clk 0:02:43]} 12. Ne2 {[%clk 0:02:11]} 12... Qa5 {[%clk
0:02:42.1]} 13. Nd4 {[%clk 0:02:09.5]} 13... Qxc3 {[%clk 0:02:32.2]} 14. Qxc3
{[%clk 0:02:08.8]} 14... Rxc3 {[%clk 0:02:33.1]} 15. Nb3 {[%clk 0:01:52.8]}
15... h5 {[%clk 0:02:19.5]} 16. f4 {[%clk 0:01:43.1]} 16... Nh6 {[%clk
0:02:02.1]} 17. Rhe1 {[%clk 0:01:40.2]} 17... O-O {[%clk 0:01:59.4]} 18. e5
{[%clk 0:01:25.3]} 18... dxe5 {[%clk 0:01:51.9]} 19. Bxg6 {[%clk 0:01:25.2]}
19... fxg6 {[%clk 0:01:40.8]} 20. Rxd7 {[%clk 0:01:25.2]} 20... Bxg2 {[%clk
0:01:31.8]} 21. Rxe7 {[%clk 0:01:20.6]} 21... exf4 {[%clk 0:01:25.2]} 22. Rxg7+
{[%clk 0:01:16.9]} 22... Kxg7 {[%clk 0:01:19.5]} 23. Bd4+ {[%clk 0:01:17]} 23...
Kg8 {[%clk 0:01:08.4]} 24. Bxc3 {[%clk 0:01:16.9]} 24... f3 {[%clk 0:01:07.8]}
25. Re7 {[%clk 0:01:04.4]} 25... Nf5 {[%clk 0:01:00.9]} 26. Rd7 {[%clk 0:00:54]}
26... f2 {[%clk 0:00:59]} 27. Nd2 {[%clk 0:00:50.6]} 27... f1=Q+ {[%clk
0:00:53.3]} 28. Nxf1 {[%clk 0:00:50.8]} 28... Bxf1 {[%clk 0:00:54.1]} 29. Kd2
{[%clk 0:00:49.9]} 29... Bc4 {[%clk 0:00:53]} 30. Ra7 {[%clk 0:00:46]} 30... Bf7
{[%clk 0:00:35.8]} 31. Rxa6 {[%clk 0:00:42.9]} 31... Nxh4 {[%clk 0:00:35.2]} 32.
Ra5 {[%clk 0:00:39.7]} 32... Bc4 {[%clk 0:00:32.5]} 33. Ra7 {[%clk 0:00:39.3]}
33... Nf5 {[%clk 0:00:30.8]} 34. Be5 {[%clk 0:00:36.5]} 34... Re8 {[%clk
0:00:27.7]} 35. Bf6 {[%clk 0:00:35.7]} 35... h4 {[%clk 0:00:24.5]} 36. Kc3
{[%clk 0:00:24.6]} 36... h3 {[%clk 0:00:22.4]} 0-1

[Event "Late-Titled-Tuesday-Blitz-March-19-2024"]
[Site "Chess.com"]
[Date "2024.03.19"]
[Round "6"]
[White "TheMagician"]
[Black "EternalNight8"]
[Result "0-1"]
[WhiteElo "2225"]
[BlackElo "2466"]
[TimeControl "180+1"]
[EndTime "15:05:09 PDT"]
[Termination "EternalNight8 won on time"]

1. d4 {[%clk 0:03:00.9]} 1... Nf6 {[%clk 0:02:59.9]} 2. c4 {[%clk 0:03:00.3]}
2... e6 {[%clk 0:03:00.5]} 3. Nc3 {[%clk 0:02:59.8]} 3... Bb4 {[%clk 0:03:00.8]}
4. Qc2 {[%clk 0:02:58.3]} 4... O-O {[%clk 0:02:57.9]} 5. Bg5 {[%clk 0:02:57.4]}
5... h6 {[%clk 0:02:54.5]} 6. Bxf6 {[%clk 0:02:55.3]} 6... Qxf6 {[%clk
0:02:55.4]} 7. e3 {[%clk 0:02:51]} 7... c5 {[%clk 0:02:53.8]} 8. Nf3 {[%clk
0:02:46.1]} 8... Nc6 {[%clk 0:02:52.2]} 9. O-O-O {[%clk 0:02:31.8]} 9... Bxc3
{[%clk 0:02:34]} 10. Qxc3 {[%clk 0:02:31.3]} 10... Nb4 {[%clk 0:02:25.8]} 11.
Kb1 {[%clk 0:02:24.9]} 11... d5 {[%clk 0:02:17]} 12. dxc5 {[%clk 0:02:13]} 12...
Qg6+ {[%clk 0:02:02.2]} 13. Bd3 {[%clk 0:02:12.6]} 13... Nxd3 {[%clk 0:02:00.8]}
14. Rxd3 {[%clk 0:02:09.3]} 14... e5 {[%clk 0:01:42.4]} 15. Nxe5 {[%clk
0:01:40.2]} 15... Qxg2 {[%clk 0:01:41.9]} 16. Rdd1 {[%clk 0:01:34.6]} 16... Qe4+
{[%clk 0:01:40.9]} 17. Ka1 {[%clk 0:01:31.5]} 17... f6 {[%clk 0:01:14.8]} 18.
Nd3 {[%clk 0:01:30.8]} 18... dxc4 {[%clk 0:01:10.5]} 19. Nf4 {[%clk 0:01:23.1]}
19... Bg4 {[%clk 0:01:06.7]} 20. Rc1 {[%clk 0:01:12.9]} 20... b5 {[%clk
0:01:03]} 21. Rhg1 {[%clk 0:00:58.5]} 21... Bf5 {[%clk 0:00:52.9]} 22. b4 {[%clk
0:00:52]} 22... Rfd8 {[%clk 0:00:38]} 23. Nh5 {[%clk 0:00:49]} 23... Bg6 {[%clk
0:00:30.1]} 24. Nf4 {[%clk 0:00:24.4]} 24... Bf7 {[%clk 0:00:29.7]} 25. Rcd1
{[%clk 0:00:11.6]} 25... Kh7 {[%clk 0:00:24]} 26. Rd4 {[%clk 0:00:05.6]} 26...
Qe5 {[%clk 0:00:19.6]} 27. Qc2+ {[%clk 0:00:04.1]} 27... Kg8 {[%clk 0:00:18.9]}
28. Rd1 {[%clk 0:00:02.5]} 28... Rxd4 {[%clk 0:00:17.5]} 29. Rxd4 {[%clk
0:00:02.6]} 29... a5 {[%clk 0:00:16.2]} 0-1